[Event "*** Biggest EVER Titled Tuesday"]
[Site "Chess.com"]
[Date "2018.04.17"]
[Round "1"]
[White "Keaton87"]
[Black "DACF2905"]
[Result "1-0"]
[WhiteElo "2459"]
[BlackElo "2032"]
[TimeControl "180+2"]
[EndTime "13:02:36 PDT"]
[Termination "Keaton87 won by resignation"]

1. d4 {[%clk 0:03:01.7]} 1... Nf6 {[%clk 0:03:00.1]} 2. Bg5 {[%clk 0:03:02]}
2... e6 {[%clk 0:02:59.9]} 3. e4 {[%clk 0:03:02.2]} 3... h6 {[%clk 0:03:00.8]}
4. Bxf6 {[%clk 0:03:03.2]} 4... Qxf6 {[%clk 0:03:01.5]} 5. c3 {[%clk 0:03:03.7]}
5... g6 {[%clk 0:03:02.3]} 6. Nd2 {[%clk 0:03:03.6]} 6... Bg7 {[%clk 0:03:03.4]}
7. Bd3 {[%clk 0:03:04.6]} 7... O-O {[%clk 0:03:02.8]} 8. Ne2 {[%clk 0:03:05.8]}
8... Qe7 {[%clk 0:03:03.8]} 9. O-O {[%clk 0:03:05.9]} 9... c5 {[%clk 0:03:04.8]}
10. f4 {[%clk 0:02:56.2]} 10... b6 {[%clk 0:03:01.1]} 11. Qc2 {[%clk 0:02:51.4]}
11... Nc6 {[%clk 0:03:00.6]} 12. d5 {[%clk 0:02:40.7]} 12... exd5 {[%clk
0:03:01.2]} 13. exd5 {[%clk 0:02:42.3]} 13... Qe3+ {[%clk 0:03:02.2]} 14. Kh1
{[%clk 0:02:40.4]} 14... Ne7 {[%clk 0:03:01.8]} 15. Nc4 {[%clk 0:02:27.8]} 15...
Nxd5 {[%clk 0:02:57.2]} 16. Nxe3 {[%clk 0:02:27.3]} 16... Nxe3 {[%clk
0:02:58.2]} 17. Qd2 {[%clk 0:02:28.2]} 17... Nxf1 {[%clk 0:02:59]} 18. Rxf1
{[%clk 0:02:30.1]} 18... d5 {[%clk 0:02:57.7]} 19. f5 {[%clk 0:02:28.3]} 19...
Kh7 {[%clk 0:02:51.6]} 20. fxg6+ {[%clk 0:02:25]} 20... fxg6 {[%clk 0:02:52.1]}
21. Rxf8 {[%clk 0:02:25.7]} 21... Bxf8 {[%clk 0:02:53.2]} 22. Nf4 {[%clk
0:02:25.8]} 22... Bf5 {[%clk 0:02:50.3]} 23. Bxf5 {[%clk 0:02:26.7]} 23... gxf5
{[%clk 0:02:51]} 24. Qxd5 {[%clk 0:02:27.7]} 24... Re8 {[%clk 0:02:50.3]} 25.
Qf7+ {[%clk 0:02:28.4]} 1-0

[Event "*** Biggest EVER Titled Tuesday"]
[Site "Chess.com"]
[Date "2018.04.17"]
[Round "1"]
[White "ArnaudovP"]
[Black "Renegade_Hitman"]
[Result "1-0"]
[WhiteElo "2471"]
[BlackElo "2075"]
[TimeControl "180+2"]
[EndTime "13:02:44 PDT"]
[Termination "ArnaudovP won by checkmate"]

1. Nf3 {[%clk 0:03:00.9]} 1... e6 {[%clk 0:03:00.9]} 2. d4 {[%clk 0:03:01.4]}
2... d5 {[%clk 0:03:02.2]} 3. c4 {[%clk 0:03:02.1]} 3... Nf6 {[%clk 0:03:02.9]}
4. g3 {[%clk 0:03:03.5]} 4... Bb4+ {[%clk 0:03:02.4]} 5. Nbd2 {[%clk 0:03:03.2]}
5... O-O {[%clk 0:03:02.3]} 6. Qc2 {[%clk 0:03:03.2]} 6... c6 {[%clk 0:03:00]}
7. Bg2 {[%clk 0:03:03.4]} 7... Nbd7 {[%clk 0:02:59.9]} 8. O-O {[%clk 0:03:04.4]}
8... b6 {[%clk 0:02:58.6]} 9. a3 {[%clk 0:03:01.8]} 9... Bd6 {[%clk 0:02:58.2]}
10. e4 {[%clk 0:03:01.8]} 10... dxe4 {[%clk 0:02:58.5]} 11. Nxe4 {[%clk
0:03:02.1]} 11... Nxe4 {[%clk 0:02:55.6]} 12. Qxe4 {[%clk 0:03:03.2]} 12... Bb7
{[%clk 0:02:43.4]} 13. Rd1 {[%clk 0:03:02]} 13... Nf6 {[%clk 0:02:44]} 14. Qc2
{[%clk 0:03:01.7]} 14... Qc7 {[%clk 0:02:42.4]} 15. c5 {[%clk 0:03:00.6]} 15...
Be7 {[%clk 0:02:42.2]} 16. Bf4 {[%clk 0:03:00.8]} 16... Qd8 {[%clk 0:02:42.5]}
17. Ne5 {[%clk 0:02:54.7]} 17... Nd5 {[%clk 0:02:42]} 18. cxb6 {[%clk
0:02:51.2]} 18... Qxb6 {[%clk 0:02:39.4]} 19. Nd7 {[%clk 0:02:50.2]} 19... Qb5
{[%clk 0:02:29]} 20. Nxf8 {[%clk 0:02:34.1]} 20... Nxf4 {[%clk 0:02:22]} 21.
Qxh7+ {[%clk 0:02:31.9]} 21... Kxf8 {[%clk 0:02:21]} 22. Qh8# {[%clk 0:02:32.7]}
1-0

[Event "*** Biggest EVER Titled Tuesday"]
[Site "Chess.com"]
[Date "2018.04.17"]
[Round "1"]
[White "Arystanner23"]
[Black "ChessMavenYeti"]
[Result "1-0"]
[WhiteElo "2487"]
[BlackElo "2105"]
[TimeControl "180+2"]
[EndTime "13:02:46 PDT"]
[Termination "Arystanner23 won by resignation"]

1. e4 {[%clk 0:03:01.9]} 1... e5 {[%clk 0:02:50.2]} 2. Nf3 {[%clk 0:03:02.3]}
2... Nf6 {[%clk 0:02:05.7]} 3. Nxe5 {[%clk 0:03:00.1]} 3... d6 {[%clk
0:02:05.7]} 4. Nc4 {[%clk 0:03:01.1]} 4... Nxe4 {[%clk 0:02:03.5]} 5. Qe2 {[%clk
0:03:02.2]} 5... Qe7 {[%clk 0:02:03.8]} 6. Ne3 {[%clk 0:03:03.3]} 6... c6 {[%clk
0:02:03.4]} 7. c4 {[%clk 0:03:04.4]} 7... Nd7 {[%clk 0:02:02.3]} 8. Nc3 {[%clk
0:03:05.3]} 8... Ndf6 {[%clk 0:02:03]} 9. Nxe4 {[%clk 0:03:01.8]} 9... Qxe4
{[%clk 0:02:02.4]} 10. d3 {[%clk 0:02:57.6]} 10... Qe5 {[%clk 0:02:01]} 11. g3
{[%clk 0:02:47.3]} 11... d5 {[%clk 0:02:00.2]} 12. cxd5 {[%clk 0:02:37.5]} 12...
Bb4+ {[%clk 0:02:01]} 13. Bd2 {[%clk 0:02:30.3]} 13... Qxb2 {[%clk 0:01:59.1]}
14. Nc4+ {[%clk 0:02:27.8]} 1-0

[Event "*** Biggest EVER Titled Tuesday"]
[Site "Chess.com"]
[Date "2018.04.17"]
[Round "1"]
[White "TastyFrenchFries"]
[Black "joppie2"]
[Result "0-1"]
[WhiteElo "2310"]
[BlackElo "2639"]
[TimeControl "180+2"]
[EndTime "13:03:30 PDT"]
[Termination "joppie2 won by resignation"]

1. e3 {[%clk 0:02:44.5]} 1... e5 {[%clk 0:03:00.3]} 2. Na3 {[%clk 0:02:45.4]}
2... d5 {[%clk 0:03:00.2]} 3. d4 {[%clk 0:02:46.5]} 3... exd4 {[%clk 0:02:59.2]}
4. exd4 {[%clk 0:02:43.1]} 4... Nf6 {[%clk 0:02:56.3]} 5. c3 {[%clk 0:02:40.7]}
5... Bd6 {[%clk 0:02:35.9]} 6. Nf3 {[%clk 0:02:26.6]} 6... O-O {[%clk
0:02:35.6]} 7. Be2 {[%clk 0:02:26.7]} 7... h6 {[%clk 0:02:31.3]} 8. O-O {[%clk
0:02:26.9]} 8... Re8 {[%clk 0:02:32.6]} 9. Nc2 {[%clk 0:02:25.3]} 9... Nc6
{[%clk 0:02:28.7]} 10. Re1 {[%clk 0:02:24.2]} 10... Ne4 {[%clk 0:02:29.3]} 11.
Ne3 {[%clk 0:02:23.4]} 11... Be6 {[%clk 0:02:28]} 12. c4 {[%clk 0:02:18.7]}
12... Bb4 {[%clk 0:02:25.6]} 13. Rf1 {[%clk 0:02:14.4]} 13... Bf8 {[%clk
0:02:17.4]} 14. cxd5 {[%clk 0:01:50.6]} 14... Bxd5 {[%clk 0:02:19.3]} 15. Nxd5
{[%clk 0:01:52.2]} 15... Qxd5 {[%clk 0:02:19]} 16. Be3 {[%clk 0:01:53.5]} 16...
Nd6 {[%clk 0:02:17.3]} 17. Rc1 {[%clk 0:01:50]} 17... Nf5 {[%clk 0:02:17.9]} 18.
Rc5 {[%clk 0:01:40.3]} 18... Bxc5 {[%clk 0:02:16.7]} 0-1

[Event "*** Biggest EVER Titled Tuesday"]
[Site "Chess.com"]
[Date "2018.04.17"]
[Round "1"]
[White "shyam"]
[Black "Too_Stupid_To_Play"]
[Result "1-0"]
[WhiteElo "2566"]
[BlackElo "2231"]
[TimeControl "180+2"]
[EndTime "13:03:47 PDT"]
[Termination "shyam won by resignation"]

1. e4 {[%clk 0:03:01.9]} 1... e5 {[%clk 0:02:55.7]} 2. Nf3 {[%clk 0:03:02.9]}
2... Nc6 {[%clk 0:02:57.1]} 3. Bb5 {[%clk 0:03:04.2]} 3... a6 {[%clk 0:02:55.4]}
4. Ba4 {[%clk 0:03:05.3]} 4... Nf6 {[%clk 0:02:54.5]} 5. d3 {[%clk 0:03:06.6]}
5... b5 {[%clk 0:02:54.4]} 6. Bb3 {[%clk 0:03:07.6]} 6... Bb7 {[%clk 0:02:55.7]}
7. Nc3 {[%clk 0:03:07.6]} 7... Bc5 {[%clk 0:02:55.7]} 8. Nd5 {[%clk 0:03:00.9]}
8... h6 {[%clk 0:02:54.1]} 9. a3 {[%clk 0:02:43.9]} 9... O-O {[%clk 0:02:54]}
10. O-O {[%clk 0:02:44.8]} 10... Re8 {[%clk 0:02:52.9]} 11. Be3 {[%clk
0:02:44.7]} 11... Bxe3 {[%clk 0:02:42.6]} 12. Nxf6+ {[%clk 0:02:43.9]} 12...
Qxf6 {[%clk 0:02:41]} 13. fxe3 {[%clk 0:02:45.8]} 13... Na5 {[%clk 0:02:23.1]}
14. Nd2 {[%clk 0:02:19.7]} 14... Qg5 {[%clk 0:01:31.2]} 15. Bxf7+ {[%clk
0:02:17.8]} 15... Kh8 {[%clk 0:01:30.3]} 16. Bxe8 {[%clk 0:02:18.8]} 16... Rxe8
{[%clk 0:01:30.4]} 17. Qf3 {[%clk 0:02:14.6]} 1-0

[Event "*** Biggest EVER Titled Tuesday"]
[Site "Chess.com"]
[Date "2018.04.17"]
[Round "1"]
[White "ehrenfeld"]
[Black "Abdodi"]
[Result "1-0"]
[WhiteElo "2463"]
[BlackElo "2055"]
[TimeControl "180+2"]
[EndTime "13:03:47 PDT"]
[Termination "ehrenfeld won by resignation"]

1. e4 {[%clk 0:03:00.8]} 1... c6 {[%clk 0:02:56.3]} 2. d4 {[%clk 0:03:01.1]}
2... d5 {[%clk 0:02:50.1]} 3. exd5 {[%clk 0:03:01.8]} 3... cxd5 {[%clk
0:02:49.5]} 4. Bd3 {[%clk 0:03:03.2]} 4... Nc6 {[%clk 0:02:48.4]} 5. c3 {[%clk
0:03:04]} 5... Qc7 {[%clk 0:02:49.4]} 6. Ne2 {[%clk 0:03:04.1]} 6... Bg4 {[%clk
0:02:46.3]} 7. O-O {[%clk 0:03:04.5]} 7... Nf6 {[%clk 0:02:46.6]} 8. Qe1 {[%clk
0:03:04.1]} 8... Bxe2 {[%clk 0:02:45]} 9. Qxe2 {[%clk 0:03:04.3]} 9... e6 {[%clk
0:02:46.7]} 10. Nd2 {[%clk 0:03:04.1]} 10... Bd6 {[%clk 0:02:47.8]} 11. g3
{[%clk 0:03:05]} 11... O-O {[%clk 0:02:45.8]} 12. f4 {[%clk 0:03:05.1]} 12...
Ne7 {[%clk 0:02:40.6]} 13. Nf3 {[%clk 0:03:04.9]} 13... Nf5 {[%clk 0:02:41.4]}
14. Bd2 {[%clk 0:03:05]} 14... Rfe8 {[%clk 0:02:40.9]} 15. Rae1 {[%clk
0:03:03.3]} 15... h6 {[%clk 0:02:37.2]} 16. Kh1 {[%clk 0:03:03.2]} 16... Ng4
{[%clk 0:02:32.1]} 17. Ne5 {[%clk 0:03:00.5]} 17... Nxe5 {[%clk 0:02:29.9]} 18.
fxe5 {[%clk 0:03:00.9]} 18... Bf8 {[%clk 0:02:30.1]} 19. Bxf5 {[%clk 0:02:45.2]}
19... exf5 {[%clk 0:02:32]} 20. Rxf5 {[%clk 0:02:44.8]} 20... g6 {[%clk
0:02:31.7]} 21. Rf3 {[%clk 0:02:41.5]} 21... Bg7 {[%clk 0:02:32.6]} 22. Qf2
{[%clk 0:02:40.1]} 22... Re7 {[%clk 0:02:30.9]} 23. Rf1 {[%clk 0:02:40.5]} 23...
Rf8 {[%clk 0:02:31.1]} 24. Bc1 {[%clk 0:02:39.9]} 24... Qa5 {[%clk 0:02:30.7]}
25. a3 {[%clk 0:02:39.7]} 25... Qc7 {[%clk 0:02:30.1]} 26. g4 {[%clk 0:02:39.6]}
26... Qd7 {[%clk 0:02:31]} 27. Qh4 {[%clk 0:02:39.8]} 27... g5 {[%clk
0:02:30.4]} 28. Qg3 {[%clk 0:02:36.9]} 28... Qe6 {[%clk 0:02:30.2]} 29. h4
{[%clk 0:02:31.9]} 29... gxh4 {[%clk 0:02:28.2]} 30. Qxh4 {[%clk 0:02:32]} 30...
Rc7 {[%clk 0:02:24.7]} 31. Rf6 {[%clk 0:02:31]} 31... Qa6 {[%clk 0:02:15]} 32.
Rxa6 {[%clk 0:02:30.1]} 32... bxa6 {[%clk 0:02:15]} 33. Bxh6 {[%clk 0:02:29.7]}
1-0

[Event "*** Biggest EVER Titled Tuesday"]
[Site "Chess.com"]
[Date "2018.04.17"]
[Round "1"]
[White "Alexander_Moskalenko"]
[Black "StellarChessPro"]
[Result "1-0"]
[WhiteElo "2709"]
[BlackElo "2374"]
[TimeControl "180+2"]
[EndTime "13:04:01 PDT"]
[Termination "Alexander_Moskalenko won by resignation"]

1. d4 {[%clk 0:02:57.7]} 1... d5 {[%clk 0:03:00.6]} 2. Bf4 {[%clk 0:02:54.7]}
2... Nf6 {[%clk 0:03:01.3]} 3. e3 {[%clk 0:02:55.3]} 3... g6 {[%clk 0:03:02.2]}
4. Nc3 {[%clk 0:02:53]} 4... c6 {[%clk 0:03:01.8]} 5. h4 {[%clk 0:02:54.4]} 5...
h5 {[%clk 0:03:02.6]} 6. Nf3 {[%clk 0:02:46.7]} 6... Qa5 {[%clk 0:03:01.6]} 7.
Qd2 {[%clk 0:02:46.5]} 7... Nbd7 {[%clk 0:02:59.4]} 8. Be2 {[%clk 0:02:47.3]}
8... e6 {[%clk 0:02:54.4]} 9. a3 {[%clk 0:02:45.1]} 9... Qd8 {[%clk 0:02:52.5]}
10. Ng5 {[%clk 0:02:40.9]} 10... Nb6 {[%clk 0:02:45.6]} 11. O-O-O {[%clk
0:02:41.8]} 11... Nc4 {[%clk 0:02:43.6]} 12. Bxc4 {[%clk 0:02:42.1]} 12... dxc4
{[%clk 0:02:45.5]} 13. e4 {[%clk 0:02:42.3]} 13... b5 {[%clk 0:02:45.8]} 14. d5
{[%clk 0:02:39]} 14... cxd5 {[%clk 0:02:35.4]} 15. exd5 {[%clk 0:02:40.9]} 15...
Nxd5 {[%clk 0:02:13.2]} 16. Nxd5 {[%clk 0:02:40.2]} 16... Qxd5 {[%clk
0:02:08.5]} 17. Qc3 {[%clk 0:02:41]} 17... Qf5 {[%clk 0:02:03.2]} 18. Bc7 {[%clk
0:02:37.9]} 18... Bd7 {[%clk 0:01:15.6]} 19. Qxh8 {[%clk 0:02:32.1]} 19... Rc8
{[%clk 0:01:16]} 20. Bd6 {[%clk 0:02:32.4]} 20... Qf4+ {[%clk 0:01:08.1]} 21.
Bxf4 {[%clk 0:02:32.4]} 1-0

[Event "*** Biggest EVER Titled Tuesday"]
[Site "Chess.com"]
[Date "2018.04.17"]
[Round "1"]
[White "Karina_Oparina"]
[Black "FMJoseHerrera"]
[Result "1-0"]
[WhiteElo "2146"]
[BlackElo "2487"]
[TimeControl "180+2"]
[EndTime "13:04:06 PDT"]
[Termination "Karina_Oparina won by resignation"]

1. d4 {[%clk 0:03:00.5]} 1... Nf6 {[%clk 0:03:00.9]} 2. c4 {[%clk 0:03:00.3]}
2... c5 {[%clk 0:03:01.9]} 3. Nf3 {[%clk 0:03:00.4]} 3... g6 {[%clk 0:03:02.6]}
4. g3 {[%clk 0:03:00.6]} 4... Bg7 {[%clk 0:03:04.1]} 5. Bg2 {[%clk 0:03:01.2]}
5... O-O {[%clk 0:03:06]} 6. O-O {[%clk 0:03:01.9]} 6... cxd4 {[%clk 0:03:05.8]}
7. Nxd4 {[%clk 0:03:02.3]} 7... Nc6 {[%clk 0:03:07.7]} 8. Nc3 {[%clk 0:03:02.9]}
8... a6 {[%clk 0:03:08.3]} 9. Nc2 {[%clk 0:02:48.6]} 9... d6 {[%clk 0:03:07.4]}
10. b3 {[%clk 0:02:47.5]} 10... Bd7 {[%clk 0:03:05.8]} 11. Bb2 {[%clk
0:02:48.2]} 11... Rc8 {[%clk 0:03:06.5]} 12. Ne3 {[%clk 0:02:44.9]} 12... h5
{[%clk 0:03:02.3]} 13. Qd2 {[%clk 0:02:39.5]} 13... Ne5 {[%clk 0:02:58.4]} 14.
Ncd5 {[%clk 0:02:37.5]} 14... Nxd5 {[%clk 0:02:54.8]} 15. Nxd5 {[%clk
0:02:34.4]} 15... b5 {[%clk 0:02:52.7]} 16. cxb5 {[%clk 0:02:28.4]} 16... Bxb5
{[%clk 0:02:53.1]} 17. Rac1 {[%clk 0:02:22.6]} 17... h4 {[%clk 0:02:30.1]} 18.
Rxc8 {[%clk 0:02:20.7]} 18... Qxc8 {[%clk 0:02:06]} 19. Nxe7+ {[%clk 0:02:20.8]}
19... Kh7 {[%clk 0:02:07.9]} 20. Nxc8 {[%clk 0:02:21.2]} 20... Rxc8 {[%clk
0:02:09.8]} 21. Rc1 {[%clk 0:02:10.1]} 21... Re8 {[%clk 0:02:10]} 22. e3 {[%clk
0:02:00.6]} 22... h3 {[%clk 0:02:10.1]} 23. Bxe5 {[%clk 0:01:58.4]} 23... dxe5
{[%clk 0:02:09.8]} 24. Bxh3 {[%clk 0:01:58.6]} 24... Bf6 {[%clk 0:02:11.4]} 25.
a4 {[%clk 0:01:49.2]} 25... Rd8 {[%clk 0:02:11]} 26. Qxd8 {[%clk 0:01:49]} 26...
Bxd8 {[%clk 0:02:11.4]} 27. axb5 {[%clk 0:01:49.8]} 27... axb5 {[%clk
0:02:13.3]} 28. Rc5 {[%clk 0:01:50.2]} 1-0

[Event "*** Biggest EVER Titled Tuesday"]
[Site "Chess.com"]
[Date "2018.04.17"]
[Round "1"]
[White "Fighterman91"]
[Black "goldenspine"]
[Result "1-0"]
[WhiteElo "2604"]
[BlackElo "2270"]
[TimeControl "180+2"]
[EndTime "13:04:21 PDT"]
[Termination "Fighterman91 won by resignation"]

1. e4 {[%clk 0:03:01.9]} 1... e6 {[%clk 0:02:54.3]} 2. d4 {[%clk 0:03:02.7]}
2... d5 {[%clk 0:02:55.8]} 3. Nc3 {[%clk 0:03:03.6]} 3... Bb4 {[%clk 0:02:53.7]}
4. exd5 {[%clk 0:03:04.5]} 4... exd5 {[%clk 0:02:53.8]} 5. Bd3 {[%clk
0:03:06.1]} 5... Ne7 {[%clk 0:02:53.8]} 6. Nf3 {[%clk 0:03:05.1]} 6... Nbc6
{[%clk 0:02:54.2]} 7. a3 {[%clk 0:03:05.1]} 7... Bxc3+ {[%clk 0:02:47]} 8. bxc3
{[%clk 0:03:07]} 8... Bf5 {[%clk 0:02:47.2]} 9. O-O {[%clk 0:03:07.4]} 9... Qd7
{[%clk 0:02:48.3]} 10. Rb1 {[%clk 0:03:04]} 10... Na5 {[%clk 0:02:44.9]} 11. Ne5
{[%clk 0:03:03.2]} 11... Qd6 {[%clk 0:02:41.2]} 12. Bf4 {[%clk 0:03:02.7]} 12...
Qf6 {[%clk 0:02:33.3]} 13. Qd2 {[%clk 0:02:51.7]} 13... Bxd3 {[%clk 0:02:18.6]}
14. cxd3 {[%clk 0:02:50.2]} 14... O-O {[%clk 0:02:15.7]} 15. Nd7 {[%clk
0:02:48.5]} 15... Qc6 {[%clk 0:02:05.7]} 16. Nxf8 {[%clk 0:02:49.2]} 16... Rxf8
{[%clk 0:02:07.3]} 17. Rfe1 {[%clk 0:02:49.1]} 17... Ng6 {[%clk 0:02:07.7]} 18.
Bg3 {[%clk 0:02:50.1]} 18... b6 {[%clk 0:02:04.4]} 19. h4 {[%clk 0:02:50.6]}
19... Qd7 {[%clk 0:01:54.6]} 20. h5 {[%clk 0:02:51.4]} 20... Ne7 {[%clk
0:01:54.9]} 21. h6 {[%clk 0:02:52.3]} 21... g6 {[%clk 0:01:54.7]} 22. Bh4 {[%clk
0:02:37.5]} 22... f6 {[%clk 0:01:52.4]} 23. Bg3 {[%clk 0:02:16.5]} 23... Nac6
{[%clk 0:01:47.3]} 24. Qf4 {[%clk 0:02:12]} 24... Rc8 {[%clk 0:01:21.5]} 25.
Qxf6 {[%clk 0:02:12]} 1-0

[Event "*** Biggest EVER Titled Tuesday"]
[Site "Chess.com"]
[Date "2018.04.17"]
[Round "1"]
[White "Superfelix"]
[Black "GrigorGrigorov"]
[Result "0-1"]
[WhiteElo "2346"]
[BlackElo "2659"]
[TimeControl "180+2"]
[EndTime "13:04:24 PDT"]
[Termination "GrigorGrigorov won by checkmate"]

1. e4 {[%clk 0:03:01.3]} 1... d5 {[%clk 0:03:00.3]} 2. exd5 {[%clk 0:03:01.7]}
2... Qxd5 {[%clk 0:03:01.1]} 3. Nf3 {[%clk 0:03:03.2]} 3... Bg4 {[%clk
0:02:59.6]} 4. Be2 {[%clk 0:03:03.6]} 4... Nc6 {[%clk 0:03:00.3]} 5. O-O {[%clk
0:03:04.4]} 5... O-O-O {[%clk 0:02:59]} 6. Nc3 {[%clk 0:03:03.3]} 6... Qd7
{[%clk 0:02:59.1]} 7. b4 {[%clk 0:03:02.7]} 7... e6 {[%clk 0:02:40.2]} 8. b5
{[%clk 0:02:59.1]} 8... Bxf3 {[%clk 0:02:40.5]} 9. Bxf3 {[%clk 0:02:58.2]} 9...
Nd4 {[%clk 0:02:41.8]} 10. a4 {[%clk 0:02:58.4]} 10... Bb4 {[%clk 0:02:34.2]}
11. Bb2 {[%clk 0:02:53.5]} 11... Nf6 {[%clk 0:02:27.2]} 12. d3 {[%clk
0:02:52.8]} 12... h5 {[%clk 0:02:16.4]} 13. Ne4 {[%clk 0:02:43.3]} 13... Nxe4
{[%clk 0:02:09]} 14. Bxe4 {[%clk 0:02:41.2]} 14... f5 {[%clk 0:02:07.5]} 15. Bf3
{[%clk 0:02:35.3]} 15... g5 {[%clk 0:02:07]} 16. g3 {[%clk 0:02:36.1]} 16... h4
{[%clk 0:01:57.9]} 17. Bg2 {[%clk 0:02:35.1]} 17... hxg3 {[%clk 0:01:55.9]} 18.
fxg3 {[%clk 0:02:23.7]} 18... Bc5 {[%clk 0:01:54.8]} 19. Rf2 {[%clk 0:02:20.6]}
19... g4 {[%clk 0:01:47.6]} 20. Kh1 {[%clk 0:02:13.7]} 20... Rh6 {[%clk
0:01:21.3]} 21. c3 {[%clk 0:02:13.3]} 21... Nf3 {[%clk 0:01:19.1]} 22. Rxf3
{[%clk 0:02:12.1]} 22... Rxh2+ {[%clk 0:01:16]} 23. Kxh2 {[%clk 0:02:12.6]}
23... Qh7+ {[%clk 0:01:16.3]} 24. Bh3 {[%clk 0:02:10.4]} 24... Qxh3# {[%clk
0:01:16.8]} 0-1

[Event "*** Biggest EVER Titled Tuesday"]
[Site "Chess.com"]
[Date "2018.04.17"]
[Round "1"]
[White "GameOverBro"]
[Black "PawnEatingZombie"]
[Result "1-0"]
[WhiteElo "2454"]
[BlackElo "2000"]
[TimeControl "180+2"]
[EndTime "13:04:28 PDT"]
[Termination "GameOverBro won by resignation"]

1. e4 {[%clk 0:03:00.4]} 1... c5 {[%clk 0:03:00.6]} 2. Ne2 {[%clk 0:03:01]} 2...
Nc6 {[%clk 0:03:01]} 3. Nbc3 {[%clk 0:03:01.8]} 3... g6 {[%clk 0:02:51.1]} 4. d4
{[%clk 0:03:02.6]} 4... cxd4 {[%clk 0:02:52]} 5. Nxd4 {[%clk 0:03:04.5]} 5...
Bg7 {[%clk 0:02:53]} 6. Nde2 {[%clk 0:03:06.4]} 6... d6 {[%clk 0:02:51.1]} 7. g3
{[%clk 0:03:08.3]} 7... Nf6 {[%clk 0:02:52]} 8. Bg2 {[%clk 0:03:09.8]} 8... O-O
{[%clk 0:02:53.1]} 9. O-O {[%clk 0:03:11.4]} 9... Bd7 {[%clk 0:02:47]} 10. a4
{[%clk 0:03:12.8]} 10... Rc8 {[%clk 0:02:46.9]} 11. Nd5 {[%clk 0:03:13.8]} 11...
Re8 {[%clk 0:02:43]} 12. c3 {[%clk 0:03:12.9]} 12... Ne5 {[%clk 0:02:34.1]} 13.
h3 {[%clk 0:03:08.6]} 13... a6 {[%clk 0:02:19.7]} 14. Ra2 {[%clk 0:03:04]} 14...
Nxd5 {[%clk 0:02:19.5]} 15. exd5 {[%clk 0:03:04.4]} 15... b5 {[%clk 0:02:19.1]}
16. axb5 {[%clk 0:03:05.6]} 16... axb5 {[%clk 0:02:20.6]} 17. Kh2 {[%clk
0:03:04.6]} 17... Ra8 {[%clk 0:02:15.9]} 18. Rxa8 {[%clk 0:02:55.7]} 18... Qxa8
{[%clk 0:02:17.8]} 19. Nd4 {[%clk 0:02:57]} 19... Qb7 {[%clk 0:02:15.4]} 20. Re1
{[%clk 0:02:55.7]} 20... b4 {[%clk 0:02:06.4]} 21. f4 {[%clk 0:02:51.8]} 21...
Nc4 {[%clk 0:02:01.6]} 22. b3 {[%clk 0:02:49.3]} 22... Na5 {[%clk 0:01:59.9]}
23. c4 {[%clk 0:02:50.2]} 23... Qa6 {[%clk 0:01:45.3]} 24. Be3 {[%clk
0:02:35.7]} 24... Nb7 {[%clk 0:01:44.1]} 25. Nc6 {[%clk 0:02:33.7]} 25... Bxc6
{[%clk 0:01:37.8]} 26. dxc6 {[%clk 0:02:34.6]} 26... Nc5 {[%clk 0:01:39.5]} 27.
Bxc5 {[%clk 0:02:34.4]} 27... dxc5 {[%clk 0:01:40.3]} 28. Qd7 {[%clk 0:02:33.5]}
28... Qc8 {[%clk 0:01:40.3]} 29. Rxe7 {[%clk 0:02:28.8]} 29... Bd4 {[%clk
0:01:14.1]} 30. Rxe8+ {[%clk 0:02:28.5]} 1-0

[Event "*** Biggest EVER Titled Tuesday"]
[Site "Chess.com"]
[Date "2018.04.17"]
[Round "1"]
[White "HarutyunianTigranK"]
[Black "JosefineHeinemann"]
[Result "1-0"]
[WhiteElo "2703"]
[BlackElo "2362"]
[TimeControl "180+2"]
[EndTime "13:05:23 PDT"]
[Termination "HarutyunianTigranK won by resignation"]

1. c4 {[%clk 0:03:00.7]} 1... e5 {[%clk 0:02:59.8]} 2. Nc3 {[%clk 0:03:01.6]}
2... Nf6 {[%clk 0:03:00.8]} 3. Nf3 {[%clk 0:03:02.9]} 3... Nc6 {[%clk
0:03:01.8]} 4. e4 {[%clk 0:03:04.4]} 4... Bb4 {[%clk 0:03:02.8]} 5. d3 {[%clk
0:03:05.1]} 5... O-O {[%clk 0:03:03]} 6. a3 {[%clk 0:03:05.3]} 6... Bxc3+ {[%clk
0:03:02.9]} 7. bxc3 {[%clk 0:03:07.2]} 7... h6 {[%clk 0:03:04]} 8. g3 {[%clk
0:03:08.2]} 8... d6 {[%clk 0:03:05.2]} 9. Bg2 {[%clk 0:03:09.4]} 9... Be6 {[%clk
0:03:06.2]} 10. O-O {[%clk 0:03:10.1]} 10... Qd7 {[%clk 0:03:07.1]} 11. Nh4
{[%clk 0:03:11]} 11... g5 {[%clk 0:03:04.7]} 12. Qf3 {[%clk 0:02:58.7]} 12...
Kg7 {[%clk 0:02:53.1]} 13. Nf5+ {[%clk 0:02:59]} 13... Bxf5 {[%clk 0:02:54.4]}
14. exf5 {[%clk 0:03:00.9]} 14... Rab8 {[%clk 0:02:47.3]} 15. g4 {[%clk
0:02:51]} 15... e4 {[%clk 0:02:44.1]} 16. dxe4 {[%clk 0:02:43.9]} 16... Ne5
{[%clk 0:02:45.2]} 17. Qg3 {[%clk 0:02:43.6]} 17... Nxc4 {[%clk 0:02:43.3]} 18.
h4 {[%clk 0:02:43.7]} 18... Ne5 {[%clk 0:02:41.6]} 19. hxg5 {[%clk 0:02:42.2]}
19... hxg5 {[%clk 0:02:41.8]} 20. Bxg5 {[%clk 0:02:44.1]} 20... Rh8 {[%clk
0:02:40.8]} 21. f4 {[%clk 0:02:38.3]} 21... Nexg4 {[%clk 0:02:25.7]} 22. Bxf6+
{[%clk 0:02:30.2]} 22... Kxf6 {[%clk 0:02:26.4]} 23. Qxg4 {[%clk 0:02:31.3]}
23... Rbg8 {[%clk 0:02:27.5]} 24. e5+ {[%clk 0:02:30.2]} 24... Ke7 {[%clk
0:02:26.8]} 25. f6+ {[%clk 0:02:30.6]} 25... Kd8 {[%clk 0:02:26.9]} 26. Qxd7+
{[%clk 0:02:31.4]} 26... Kxd7 {[%clk 0:02:28.2]} 27. Rf3 {[%clk 0:02:28]} 27...
Rh4 {[%clk 0:02:27]} 28. Kf2 {[%clk 0:02:27.3]} 28... dxe5 {[%clk 0:02:25]} 29.
fxe5 {[%clk 0:02:26.1]} 29... Ke6 {[%clk 0:02:26.3]} 30. Re1 {[%clk 0:02:23.5]}
30... Rgh8 {[%clk 0:02:25.3]} 31. Ree3 {[%clk 0:02:15.3]} 31... b6 {[%clk
0:02:24.9]} 32. Bh3+ {[%clk 0:02:10.7]} 32... Kd5 {[%clk 0:02:25.6]} 33. e6
{[%clk 0:02:11.9]} 33... fxe6 {[%clk 0:02:23.1]} 34. f7 {[%clk 0:02:10.5]} 34...
Rf8 {[%clk 0:02:22]} 35. Bxe6+ {[%clk 0:02:10.4]} 35... Kc5 {[%clk 0:02:22.4]}
36. Bb3 {[%clk 0:02:06.1]} 36... Rh2+ {[%clk 0:02:15.9]} 37. Kg3 {[%clk
0:02:06.5]} 37... Rhh8 {[%clk 0:02:16.1]} 38. Re6 {[%clk 0:02:04.2]} 38... Kb5
{[%clk 0:02:08.5]} 39. Rf5+ {[%clk 0:02:02.3]} 39... Ka6 {[%clk 0:02:09.4]} 40.
Bc4+ {[%clk 0:02:01.8]} 40... Kb7 {[%clk 0:02:10.5]} 41. Bd5+ {[%clk 0:02:02.8]}
41... Kc8 {[%clk 0:02:08.8]} 42. Bc6 {[%clk 0:02:02.9]} 42... Kd8 {[%clk
0:02:09.8]} 43. Rfe5 {[%clk 0:02:02.8]} 1-0